bitfinex/quotes_SOLUSD_20250908
["timestamp","ask_amount","ask_price","bid_price","bid_amount"]
[1757341164950,11.39395859,213.71,213.67,9.7]
[1757341165173,13.59559401,213.69,213.67,9.7]
[1757341165680,13.59559401,213.69,213.67,10.37]
[1757341165853,0.7,213.79,213.68,0.67]
[1757341166050,0.7,213.83,213.7,26.0]
[1757341166267,13.59559401,213.78,213.71,0.67]
[1757341167271,13.59559401,213.78,213.75,26.0]
[1757341167471,13.59559401,213.78,213.76,38.01]
[1757341167686,0.7,213.85,213.77,38.01]
[1757341167858,18.97179772,213.85,213.77,0.67]
[1757341168062,18.97179772,213.85,213.78,37.34]
[1757341168262,18.97179772,213.85,213.79,37.32]
[1757341168656,0.06,213.83,213.79,37.32]
[1757341169064,0.76,213.83,213.79,37.32]
[1757341169472,5.43672033,213.83,213.79,37.32]
[1757341169659,5.43672033,213.83,213.8,37.32]
[1757341170168,17.12825098,213.83,213.81,37.3]
[1757341170368,13.59559401,213.81,213.71,34.33]
[1757341170566,10.69395859,213.79,213.72,37.32]
[1757341170757,11.39395859,213.78,213.73,37.32]
[1757341171075,0.7,213.77,213.74,37.32]
[1757341171271,0.7,213.76,213.74,37.32]
[1757341171452,0.7,213.76,213.75,37.32]
[1757341171653,0.7,213.75,213.71,33.66]
[1757341171860,17.07273705,213.77,213.72,37.32]
[1757341172155,17.07273705,213.77,213.71,33.66]
[1757341172379,17.07273705,213.77,213.72,37.3]
[1757341173173,24.2895526,213.78,213.73,0.67]
[1757341173174,18.27333062,213.78,213.73,0.67]
[1757341173372,4.67773661,213.78,213.73,0.67]
[1757341173576,4.67748725,213.79,213.74,0.67]
[1757341173770,5.37748725,213.79,213.72,37.3]
[1757341174879,14.03410287,213.8,213.73,0.67]
[1757341175062,0.7,213.82,213.75,26.0]
[1757341175265,4.67683097,213.82,213.76,0.67]
[1757341175460,4.67683097,213.82,213.77,37.28]
[1757341175655,0.06,213.83,213.77,37.28]
[1757341175972,0.06,213.83,213.76,0.67]
[1757341176174,0.72,213.82,213.77,37.28]
[1757341176353,0.72,213.81,213.75,26.0]
[1757341176554,0.72,213.81,213.76,37.28]
[1757341177688,0.06,213.83,213.77,0.68]
[1757341177858,0.06,213.83,213.77,17.05273705]
[1757341178057,0.01053285,213.83,213.8,26.0]
[1757341178251,0.01053285,213.83,213.81,37.26]
[1757341178455,0.01053285,213.83,213.81,37.94]
[1757341178758,0.01053285,213.83,213.82,0.68]
[1757341179894,0.01053285,213.83,213.82,5.35683097]
[1757341180292,0.01053285,213.83,213.82,42.61683097]
[1757341182910,0.01053285,213.83,213.77,0.68]
[1757341183208,0.01053285,213.83,213.78,37.22]
[1757341183372,0.01053285,213.83,213.81,26.0]
[1757341183699,0.01053285,213.83,213.82,37.22]
[1757341183875,0.01053285,213.83,213.82,37.9]
[1757341184795,0.01053285,213.83,213.82,37.22]
[1757341185270,0.01053285,213.83,213.82,37.9]
[1757341185501,0.01053285,213.83,213.82,42.57683097]
[1757341185677,0.01053285,213.83,213.82,37.9]
[1757341186381,0.01053285,213.83,213.82,42.57683097]
[1757341187996,0.06,213.86,213.85,26.0]
[1757341188208,0.06,213.86,213.85,63.22]
[1757341188373,0.78,213.86,213.81,4.67704347]
[1757341188698,0.72,213.85,213.82,37.22]
[1757341190287,0.06,213.83,213.82,37.22]
[1757341190701,0.06,213.83,213.82,42.57683097]
[1757341191209,0.06,213.83,213.82,37.22]
[1757341192210,0.06,213.83,213.82,41.89683097]
[1757341192395,0.06,213.83,213.82,67.85683097]
[1757341193208,0.06,213.83,213.82,68.53683097]
[1757341193408,0.06,213.83,213.82,82.13242498]
[1757341193921,0.06,213.83,213.82,37.16]
[1757341194418,0.06,213.83,213.82,41.83683097]
[1757341194717,0.06,213.83,213.8,26.0]
[1757341194718,0.78,213.83,213.8,26.0]
[1757341195014,0.72,213.82,213.81,63.26]
[1757341195220,0.06,213.83,213.81,63.26]
[1757341196114,0.78,213.83,213.81,63.26]
[1757341197199,0.06,213.83,213.81,41.9368903]
[1757341197526,0.06,213.83,213.81,42.6168903]
[1757341198620,0.06,213.83,213.81,41.9368903]
[1757341199332,0.06,213.83,213.82,26.0]
[1757341199629,0.06,213.83,213.82,63.24]
[1757341199818,0.06,213.83,213.82,26.0]
[1757341200008,0.06,213.83,213.82,63.22]
[1757341200403,0.06,213.83,213.76,11.6949952]
[1757341200713,0.78,213.83,213.8,26.0]
[1757341200910,0.06,213.83,213.81,37.22]
[1757341201316,0.06,213.83,213.81,37.9]
[1757341201714,0.06,213.83,213.82,37.2]
[1757341202422,0.06,213.83,213.79,26.0]
[1757341202608,0.78,213.83,213.82,26.0]
[1757341202807,0.06,213.83,213.82,37.22]
[1757341203113,0.06,213.83,213.82,63.22]
[1757341203432,0.78,213.83,213.82,63.22]
[1757341204105,0.06,213.83,213.82,63.22]
[1757341204325,0.06,213.83,213.82,41.89683097]
[1757341204908,0.06,213.83,213.82,42.57683097]
[1757341205430,0.06,213.83,213.82,41.89683097]
[1757341206129,0.06,213.83,213.82,4.67683097]
[1757341206335,0.06,213.83,213.82,41.85683097]
[1757341206829,0.01009834,213.83,213.82,42.55683097]
[1757341207512,0.06,213.86,213.85,26.0]
[1757341207719,0.06,213.88,213.85,63.18]
[1757341207928,0.06,213.88,213.86,0.7]
[1757341208122,0.06,213.88,213.87,37.2]
[1757341208314,0.06,213.93,213.87,42.57573759]
[1757341208522,0.06,213.93,213.9,26.0]
[1757341208826,0.06,213.93,213.91,37.2]
[1757341209005,0.06,213.93,213.88,0.7]
[1757341209006,0.06,213.93,213.92,37.2]
[1757341209204,0.06,213.93,213.9,26.0]
[1757341209629,0.74,213.93,213.91,37.2]
[1757341209803,0.74,213.93,213.87,38.31573759]
[1757341209804,0.74,213.93,213.92,37.2]
[1757341210008,0.74,213.93,213.92,37.18]
[1757341210721,0.06,213.93,213.92,37.18]
[1757341211232,0.06,213.93,213.92,42.55464472]
[1757341211432,0.06,213.93,213.92,41.85464472]
[1757341212112,0.06,213.93,213.92,37.18]
[1757341212409,0.06,213.93,213.87,36.20928991]
[1757341212613,0.06,213.93,213.91,26.0]
[1757341212809,0.06,213.93,213.9,4.67497138]
[1757341213014,0.06,213.93,213.91,37.18]
[1757341213732,0.68,213.92,213.9,26.0]
[1757341213936,0.68,213.92,213.87,33.64]
[1757341213937,0.68,213.92,213.91,37.16]
[1757341214517,0.06,213.93,213.91,37.16]
[1757341214720,0.74,213.93,213.91,37.16]
[1757341214918,0.68,213.92,213.91,37.16]
[1757341215438,0.68,213.92,213.87,33.64]
[1757341215643,0.68,213.91,213.87,33.64]
[1757341215824,0.68,213.9,213.87,33.64]
[1757341216138,0.68,213.89,213.88,37.14]
[1757341216739,5.35530038,213.89,213.88,37.14]
[1757341217118,0.68,213.89,213.88,37.14]
[1757341218033,0.68,213.91,213.88,37.14]
[1757341218217,0.68,213.9,213.88,37.14]
[1757341218418,0.74,213.93,213.88,41.81538968]
[1757341218620,0.68,213.92,213.88,41.81538968]
[1757341218846,0.06,213.93,213.91,26.0]
[1757341219121,0.06,213.93,213.92,37.14]
[1757341220853,0.06,213.93,213.92,63.14]
[1757341221861,0.74,213.93,213.92,26.0]
[1757341222330,0.74,213.93,213.92,63.12]
[1757341223643,0.06,213.93,213.92,67.79464472]
[1757341224450,0.06,213.93,213.92,63.12]
[1757341225743,0.06,213.93,213.92,66.91070872]
[1757341225936,0.06,213.93,213.92,62.236064]
[1757341226474,0.06,213.93,213.89,0.7]
[1757341226622,0.06,213.93,213.9,37.1]
[1757341227024,0.06,213.93,213.87,0.7]
[1757341227238,0.06,213.93,213.88,37.08]
[1757341227447,0.74,213.93,213.89,37.08]
[1757341227759,0.74,213.93,213.92,26.0]
[1757341227958,0.74,213.93,213.92,37.08]
[1757341228554,0.06,213.93,213.92,37.08]
[1757341229929,0.74,213.93,213.92,37.06]
[1757341230145,0.06,213.93,213.92,37.06]
[1757341230654,0.06,213.93,213.92,37.76]
[1757341230827,0.74,213.93,213.92,37.06]
[1757341231640,0.06,213.93,213.92,37.06]
[1757341232028,0.06,213.93,213.92,41.73464472]
[1757341232737,0.06,213.93,213.92,42.43464472]
[1757341233126,0.06,213.93,213.92,41.73464472]
[1757341233326,0.06,213.93,213.92,45.52465686]
[1757341234043,0.06,213.93,213.92,41.73464472]
[1757341234254,0.06,213.93,213.92,45.52990359]
[1757341234432,0.06,213.93,213.92,30.67464472]
[1757341234641,0.06,213.93,213.92,67.73464472]
[1757341234838,0.06,213.93,213.92,71.44445686]
[1757341235036,0.06,213.93,213.92,67.73464472]
[1757341235655,0.06,213.93,213.92,63.06]
[1757341236344,0.06,213.93,213.9,34.46310926]
[1757341236541,0.06,213.93,213.91,37.06]
[1757341237336,0.06,213.93,213.92,37.06]
[1757341237645,0.06,213.93,213.92,41.73464472]
[1757341238135,0.06,213.93,213.92,37.06]
[1757341238334,0.06,213.93,213.92,41.73464472]
[1757341239126,0.06,213.93,213.92,4.67464472]
[1757341239327,0.06,213.93,213.92,67.73464472]
[1757341239532,0.06,213.93,213.92,63.06]
[1757341240937,0.06,213.93,213.92,67.73464472]
[1757341241959,0.06,213.96,213.92,79.42125653]
[1757341242261,0.06,213.96,213.95,26.0]
[1757341242457,0.06,213.96,213.95,63.06]
[1757341243233,0.73,213.96,213.91,26.0]
[1757341243439,0.06,213.96,213.95,26.0]
[1757341243661,0.06,213.96,213.95,63.06]
[1757341244160,0.73,213.96,213.95,63.06]
[1757341245834,5.40377079,213.96,213.95,37.06]
[1757341247671,5.40377079,213.96,213.91,26.0]
[1757341247847,0.06,213.96,213.95,26.0]
[1757341248048,0.06,213.96,213.95,63.06]
[1757341248569,0.73,213.96,213.95,63.06]
[1757341249945,5.40377079,213.96,213.95,63.06]
[1757341250465,0.06,213.96,213.95,63.06]
[1757341251756,5.40377079,213.96,213.95,63.06]
[1757341253968,4.73377079,213.96,213.92,26.03]
[1757341254276,4.73377079,213.96,213.92,0.03]
[1757341254461,4.73377079,213.96,213.95,26.0]
[1757341254652,4.73377079,213.96,213.95,63.06]
[1757341254854,5.40377079,213.96,213.95,63.06]
[1757341256856,5.40377079,213.96,213.95,26.0]
[1757341257071,17.08819778,213.96,213.95,37.06]
[1757341257452,17.08819778,213.96,213.92,0.03]
[1757341257753,17.08819778,213.96,213.93,37.06]
[1757341257964,0.67,213.95,213.93,37.06]
[1757341258355,0.67,213.94,213.93,37.06]
[1757341260269,5.34420772,213.94,213.93,37.06]
[1757341261067,18.93980173,213.94,213.93,37.06]
[1757341261469,5.34420772,213.94,213.93,37.06]
[1757341262449,0.67,213.94,213.93,37.06]
[1757341262649,5.34420772,213.94,213.93,37.06]
[1757341263768,4.67420772,213.94,213.93,37.06]
[1757341264364,73.1,213.95,213.93,37.77]
[1757341264557,73.1,213.95,213.93,37.06]
[1757341264876,13.59559401,213.93,213.89,0.03]
[1757341265077,13.59559401,213.91,213.9,14.04]
[1757341265373,0.67,213.91,213.9,14.04]
[1757341265950,14.25559401,213.94,213.9,14.04]
[1757341266173,0.66,213.93,213.9,14.04]
[1757341266376,5.33460416,213.93,213.9,14.04]
[1757341266678,4.67460416,213.93,213.92,26.0]
[1757341266887,4.67424702,213.94,213.92,26.0]
[1757341267349,0.06,213.96,213.93,26.69]
[1757341267556,0.06,213.96,213.94,37.06]
[1757341267751,0.06,213.96,213.94,37.75]
[1757341267952,0.06,213.96,213.94,37.06]
[1757341268552,0.06,213.96,213.94,37.75]
[1757341268975,0.06,213.96,213.94,37.06]
[1757341269477,0.72,213.96,213.9,0.69]
[1757341269655,0.72,213.96,213.89,0.03]
[1757341269850,3.47558083,213.95,213.93,26.0]
[1757341270050,73.16,213.96,213.89,0.03]
[1757341270251,73.16,213.96,213.9,63.06]
[1757341270450,0.06,213.96,213.93,26.0]
[1757341270651,0.06,213.96,213.94,37.06]
[1757341271480,0.06,213.96,213.94,37.75]
[1757341271655,0.06,213.96,213.94,37.06]
[1757341272572,0.06,213.96,213.94,41.73418766]
[1757341272747,0.06,213.96,213.94,37.06]
[1757341275765,0.06,213.96,213.93,26.03]
[1757341275966,0.06,213.96,213.94,37.04]
[1757341276461,0.72,213.96,213.94,37.04]
[1757341276662,5.39383051,213.96,213.94,37.04]
[1757341276863,0.66,213.95,213.93,0.03]
[1757341277073,4.73391954,213.96,213.94,37.04]
[1757341277367,0.06,213.96,213.94,37.04]
[1757341277873,0.72,213.96,213.95,37.04]
[1757341278069,4.73383751,213.96,213.95,37.04]
[1757341278875,0.06,213.96,213.95,37.04]
[1757341279458,0.72,213.96,213.95,37.04]
[1757341279680,0.72,213.96,213.93,0.03]
[1757341279877,0.72,213.96,213.94,26.0]
[1757341280080,0.72,213.96,213.95,37.04]
[1757341280264,0.06,213.96,213.94,26.0]
[1757341280670,0.06,213.96,213.95,37.04]
[1757341281075,0.06,213.96,213.94,26.0]
[1757341281383,0.06,213.96,213.95,37.04]
[1757341282082,0.72,213.96,213.95,37.04]
[1757341282384,0.06,213.96,213.95,37.04]
[1757341283060,5.39377079,213.96,213.95,37.04]
[1757341284063,5.39377079,213.96,213.93,0.03]
[1757341284064,73.1,213.95,213.93,0.03]
[1757341284474,5.20193826,213.94,213.93,0.03]
[1757341284664,5.20193826,213.94,213.93,37.07]
[1757341285272,5.20193826,213.94,213.93,0.03]
[1757341285273,9.87614598,213.94,213.93,0.03]
[1757341285460,9.87614598,213.94,213.93,37.07]
[1757341285772,9.21614598,213.94,213.93,37.07]
[1757341286088,9.87614598,213.94,213.93,37.07]
[1757341286881,9.87614598,213.94,213.93,0.03]
[1757341287065,9.87614598,213.94,213.93,37.07]
[1757341287266,8.81188519,213.94,213.93,37.07]
[1757341287580,9.87614598,213.94,213.93,37.07]
[1757341287796,26.94923069,213.94,213.93,0.03]
[1757341288182,28.819482,213.94,213.93,0.03]
[1757341290466,28.81655555,213.94,213.93,0.03]
[1757341291286,28.81655555,213.94,213.89,0.03]
[1757341291287,39.59559401,213.93,213.87,0.03]
[1757341291482,4.67595623,213.86,213.85,0.03]
[1757341291780,26.28805275,213.86,213.85,0.03]
[1757341292091,31.48999101,213.86,213.85,0.03]
[1757341292385,33.36085464,213.86,213.85,0.03]
[1757341292561,33.36085464,213.86,213.83,0.03]
[1757341292562,13.59559401,213.85,213.83,0.03]
[1757341292765,26.15403478,213.84,213.83,0.03]
[1757341292978,26.81403478,213.84,213.81,0.03]
[1757341293282,26.81403478,213.84,213.76,13.5436242]
[1757341293283,18.13753227,213.82,213.76,0.03]
[1757341293476,22.81545714,213.77,213.76,0.03]
[1757341293878,23.47545714,213.77,213.76,0.03]
[1757341294578,18.03792487,213.77,213.76,0.03]
[1757341294984,9.21986313,213.77,213.76,0.03]
[1757341295878,9.87986313,213.77,213.76,0.03]
[1757341296076,4.67792487,213.77,213.76,0.03]
[1757341297286,9.21986313,213.77,213.76,0.03]
[1757341297464,9.87986313,213.77,213.76,0.03]
[1757341298192,9.21986313,213.77,213.76,0.03]
[1757341298775,23.47545714,213.77,213.76,0.03]
[1757341298977,23.47545714,213.77,213.76,37.09]
[1757341300304,23.47545714,213.77,213.76,0.03]
[1757341304084,13.59559401,213.74,213.72,0.03]
[1757341304279,4.54193826,213.73,213.72,0.03]
[1757341304499,5.20193826,213.73,213.72,0.03]
[1757341304680,19.2419523,213.73,213.72,0.03]
[1757341305280,32.83754631,213.73,213.72,0.03]
[1757341306100,37.51634666,213.73,213.72,0.03]
[1757341307402,49.21334754,213.73,213.68,37.06]
[1757341307581,13.59559401,213.68,213.64,0.69]
[1757341307779,72.97,213.67,213.65,37.06]
[1757341307986,4.68033323,213.66,213.63,0.69]
[1757341308186,4.68033323,213.66,213.64,37.06]
[1757341308516,5.20193826,213.65,213.61,26.0]
[1757341308683,13.59559401,213.64,213.59,0.69]
[1757341309011,4.54193826,213.63,213.6,37.06]
[1757341309197,18.13753227,213.64,213.6,37.75]
[1757341309402,4.54193826,213.65,213.61,0.69]
[1757341309693,13.59559401,213.65,213.61,0.69]
[1757341309901,18.13753227,213.65,213.61,0.69]
[1757341310096,34.52023213,213.64,213.6,37.06]
[1757341310687,34.52023213,213.64,213.6,37.75]
[1757341311513,48.44862289,213.64,213.6,37.75]
[1757341312284,48.44862289,213.64,213.6,37.06]
[1757341312491,48.44862289,213.64,213.6,37.75]
[1757341312809,48.44862289,213.64,213.56,26.0]
[1757341312810,5.20193826,213.63,213.61,37.08]
[1757341313301,4.54193826,213.62,213.61,37.08]
[1757341313482,13.59559401,213.62,213.61,37.08]
[1757341313689,18.13753227,213.62,213.61,37.08]
[1757341314096,22.81874189,213.62,213.61,37.08]
[1757341314798,4.68120962,213.62,213.61,37.08]
[1757341315004,26.0,213.72,213.61,37.77]
[1757341315220,14.0452726,213.63,213.62,0.69]
[1757341315822,4.54193826,213.68,213.62,0.69]
[1757341316122,13.59559401,213.68,213.62,0.69]
[1757341316325,4.68011419,213.67,213.63,37.08]
[1757341316506,4.68011419,213.67,213.64,0.69]
[1757341316712,4.6798963,213.68,213.65,0.69]
[1757341317024,4.6798963,213.68,213.66,0.69]
[1757341318404,4.67967616,213.69,213.63,0.69]
[1757341318604,4.67967616,213.69,213.67,37.08]
[1757341318825,18.27508428,213.7,213.67,37.77]
[1757341319326,18.27508428,213.7,213.67,37.08]
[1757341319522,18.27508428,213.7,213.64,0.69]
[1757341319523,0.66,213.69,213.64,0.69]
[1757341319826,5.20193826,213.68,213.65,37.08]
[1757341320126,5.20193826,213.68,213.54,11.70721973]
[1757341320127,0.66,213.67,213.6,0.69]
[1757341320314,0.66,213.67,213.61,37.08]
[1757341320515,4.68033323,213.66,213.61,37.08]
[1757341320709,4.68033323,213.66,213.62,0.69]
[1757341321026,18.93534391,213.69,213.63,0.69]
[1757341321330,18.27534391,213.69,213.63,0.69]
[1757341321715,29.97453432,213.69,213.64,37.08]
[1757341321916,4.6797499,213.69,213.65,0.69]
[1757341322319,4.6797499,213.69,213.64,37.08]
[1757341322519,17.03894031,213.69,213.64,0.69]
[1757341322726,17.03894031,213.69,213.65,37.08]
[1757341322931,5.3397499,213.69,213.65,37.08]
[1757341323932,4.6797499,213.69,213.65,37.08]
[1757341324312,4.6797499,213.69,213.66,0.69]
[1757341324632,73.0,213.7,213.66,0.69]
[1757341324843,14.04067115,213.72,213.67,0.69]
[1757341325011,14.04067115,213.72,213.66,26.0]
[1757341325012,18.71969752,213.72,213.66,26.0]
[1757341325212,4.67902637,213.72,213.68,0.69]
[1757341325426,4.67902637,213.72,213.67,37.08]
[1757341325624,0.66,213.71,213.64,0.69]
[1757341325932,0.66,213.71,213.65,37.08]
[1757341326238,14.25559401,213.71,213.66,37.08]
[1757341326617,4.67945718,213.7,213.66,37.08]
[1757341327416,16.37810013,213.7,213.64,0.69]
[1757341327625,16.37810013,213.7,213.65,37.08]
[1757341327933,4.67883083,213.73,213.68,26.0]
[1757341328140,4.67854679,213.75,213.69,37.77]
[1757341328853,0.06,213.72,213.71,26.0]
[1757341329019,0.06,213.72,213.71,26.69]
[1757341329735,0.06,213.72,213.71,63.77]
[1757341330043,0.06,213.75,213.71,67.51856813]
[1757341330230,0.06,213.75,213.72,0.69]
[1757341330431,0.06,213.75,213.73,0.69]
[1757341330740,0.06,213.75,213.74,37.06]
[1757341330939,0.06,213.75,213.73,26.0]
[1757341331115,0.06,213.75,213.74,37.75]
[1757341331936,0.06,213.75,213.69,14.03278995]
[1757341332138,0.72,213.75,213.7,37.06]
[1757341332334,0.06,213.75,213.71,37.06]
[1757341332860,0.06,213.75,213.71,37.75]
[1757341333155,0.06,213.75,213.74,26.0]
[1757341333629,0.06,213.77,213.74,26.69]
[1757341333830,0.06,213.77,213.75,37.75]
[1757341334019,0.06,213.77,213.76,0.69]
[1757341334846,5.39613721,213.86,213.79,26.0]
[1757341334847,0.06,213.86,213.79,26.0]
[1757341335024,0.06,213.86,213.83,26.0]
[1757341335330,0.06,213.89,213.88,39.59559401]
[1757341335543,0.06,213.96,213.88,76.77559401]
[1757341335740,0.06,213.96,213.92,26.0]
[1757341335943,0.06,213.96,213.93,37.22]
[1757341336162,0.06,213.96,213.95,26.0]
[1757341336350,0.06,213.96,213.95,63.22]
[1757341336840,0.06,213.96,213.93,0.69]
[1757341337425,0.06,213.96,213.94,37.22]
[1757341337625,0.06,213.96,213.95,37.22]
[1757341337842,0.06,213.96,213.9,26.69]
[1757341338039,0.06,213.96,213.94,26.0]
[1757341338352,0.06,213.96,213.95,37.22]
[1757341338747,0.06,213.96,213.91,0.69]
[1757341339071,0.06,213.96,213.95,26.0]
[1757341339848,0.06,213.96,213.93,26.69]
[1757341340047,0.06,213.96,213.95,37.22]
[1757341340360,0.06,213.96,213.95,37.2]
[1757341340552,0.06,213.96,213.95,37.89]
[1757341342147,0.06,213.99,213.98,26.0]
[1757341342330,0.06,214.01,213.98,63.2]
[1757341342530,0.06,214.01,213.99,0.69]
[1757341342943,0.06,214.01,214.0,0.69]
[1757341343443,0.06,214.06,214.0,0.69]
[1757341343628,0.06,214.06,214.04,26.0]
[1757341343835,0.06,214.06,214.05,37.2]
[1757341344452,0.72,214.06,214.05,37.2]
[1757341344658,0.06,214.06,214.05,37.2]
[1757341346360,0.06,214.06,214.05,37.16]
[1757341346751,0.72,214.06,213.94,0.69]
[1757341347051,16.35131978,214.05,213.97,26.0]
[1757341347261,0.66,214.04,213.97,26.0]
[1757341347461,0.66,214.03,213.98,37.16]
[1757341347835,0.66,214.02,213.99,37.16]
[1757341348054,0.66,214.01,214.0,37.16]
[1757341348959,5.33267884,214.01,214.0,37.16]
[1757341349258,4.67267884,214.01,214.0,37.14]
[1757341350628,4.67186237,214.05,214.0,37.83]
[1757341350855,0.66,214.04,214.0,37.14]
[1757341351052,4.6722422,214.03,214.01,37.12]
[1757341351258,4.6722422,214.03,214.02,37.12]
[1757341351259,5.3322422,214.03,214.02,37.12]
[1757341351465,17.01284772,214.03,213.97,26.0]
[1757341351666,0.66,214.02,213.98,37.12]
[1757341351848,0.66,214.01,213.98,37.12]
[1757341352047,16.35284772,214.03,213.94,0.72]
[1757341352239,0.66,214.0,213.95,37.12]
[1757341352657,0.66,214.0,213.95,63.12]
[1757341352867,0.66,214.0,213.95,26.0]
[1757341353050,4.67311556,213.99,213.96,37.12]
[1757341353239,4.67311556,213.99,213.95,26.0]
[1757341353440,0.66,213.98,213.96,37.1]
[1757341353743,0.66,213.97,213.94,0.03]
[1757341353948,0.66,213.97,213.95,37.1]
[1757341354950,85.34154717,214.02,213.96,0.69]
[1757341355156,4.67267884,214.01,213.96,0.69]
[1757341355858,7.84314905,214.0,213.97,37.14]
[1757341356052,0.69,213.99,213.97,37.14]
[1757341356355,0.69,213.98,213.97,37.14]
[1757341357036,19.26268924,213.98,213.85,14.02164007]
[1757341357250,13.59559401,213.94,213.8,19.04]
[1757341357558,13.59559401,213.94,213.87,19.04]
[1757341357559,2.9060204,213.94,213.87,19.04]
[1757341357741,13.59559401,213.95,213.87,19.04]
[1757341358341,0.69,213.96,213.9,26.0]
[1757341359159,23.36162482,214.03,213.9,26.0]
[1757341359160,0.69,213.99,213.9,26.66]
[1757341359468,2.9060204,213.97,213.9,26.0]
[1757341359667,13.59559401,214.02,213.9,26.0]
[1757341359668,3.5960204,213.96,213.9,26.0]
[1757341360544,13.59559401,214.02,213.78,35.52350063]
[1757341360768,2.9060204,213.93,213.9,8.42]
[1757341361066,4.67464472,213.92,213.9,8.42]
[1757341361263,2.9060204,213.96,213.9,8.42]
[1757341361466,11.68450164,213.96,213.9,8.42]
[1757341361644,11.68450164,213.96,213.89,0.03]
[1757341361645,2.9060204,213.91,213.89,0.03]
[1757341361843,2.9060204,213.9,213.89,0.03]
[1757341362461,3.5960204,213.9,213.89,37.61]
[1757341363169,5.36508181,213.9,213.89,37.61]
[1757341365470,8.27110221,213.9,213.89,37.61]
[1757341366269,0.69,213.94,213.89,37.61]
[1757341366475,73.69,213.97,213.89,37.61]
[1757341366680,29.95379179,213.96,213.89,37.61]
[1757341366859,32.85981219,213.96,213.89,37.61]
[1757341367874,19.26421818,213.96,213.89,37.61]
[1757341368182,2.9060204,213.94,213.89,0.03]
[1757341368357,7.16007635,213.92,213.9,37.54]
[1757341368674,0.69,213.92,213.9,37.54]
[1757341370077,4.67486326,213.91,213.9,37.54]
[1757341371775,5.36486326,213.91,213.9,37.5]
[1757341372156,5.36486326,213.91,213.89,0.03]
[1757341372357,7.85007635,213.9,213.89,0.03]
[1757341372659,24.88757811,213.9,213.89,0.03]
[1757341374478,29.56265992,213.9,213.89,0.03]
[1757341374667,29.56265992,213.9,213.84,0.03]
[1757341374668,7.16007635,213.85,213.84,0.03]
[1757341374863,24.20153144,213.85,213.84,0.03]
[1757341375063,24.89153144,213.85,213.84,0.03]
[1757341376883,29.56770632,213.85,213.84,0.03]
[1757341378470,36.72778267,213.85,213.84,0.03]
[1757341379081,38.59908393,213.85,213.84,0.03]
[1757341380484,34.97914424,213.85,213.84,0.03]
[1757341383466,13.59559401,213.82,213.76,0.32]
[1757341383685,10.70021301,213.78,213.76,0.32]